fUSD/lending_fUSD_20251006
["ID","MTS","AMOUNT","RATE_DAILY","PERIOD"]
[389684839,1759793441738,-1026.97,0.00029225,7]
[389684840,1759793441747,-500.0,0.00029225,7]
[389684841,1759793441760,-500.0,0.00029225,7]
[389684842,1759793441769,-2941.94,0.00029225,7]
[389684843,1759793441778,-2941.94,0.00029225,7]
[389684844,1759793441787,-500.0,0.00029225,7]
[389684845,1759793441795,-500.0,0.00029225,7]
[389684846,1759793441804,-559.45531842,0.00029225,7]
[389684847,1759793441813,-500.0,0.00029225,7]
[389684848,1759793441822,-500.0,0.00029225,7]
[389684849,1759793441832,-500.0,0.00029225,7]
[389684850,1759793441841,-500.0,0.00029225,7]
[389684851,1759793441851,-500.0,0.00029225,7]
[389684852,1759793441860,-500.0,0.00029225,7]
[389684853,1759793441869,-500.0,0.00029225,7]
[389684854,1759793441879,-532.89922326,0.00029225,7]
[389684855,1759793441890,-500.0,0.00029225,7]
[389684856,1759793441899,-500.0,0.00029225,7]
[389684857,1759793441908,-500.0,0.00029225,7]
[389684858,1759793441917,-500.0,0.00029225,7]
[389684859,1759793441928,-500.0,0.00029225,7]
[389684860,1759793441937,-500.0,0.00029225,7]
[389684861,1759793441946,-500.0,0.00029225,7]
[389684862,1759793441955,-500.0,0.00029225,7]
[389684863,1759793441964,-500.0,0.00029225,7]
[389684864,1759793441973,-1000.0,0.00029225,7]
[389684865,1759793441986,-500.0,0.00029225,7]
[389684866,1759793441995,-500.0,0.00029225,7]
[389684867,1759793442004,-234.28179289,0.00029225,7]
[389684868,1759793442014,-500.0,0.00029225,7]
[389684869,1759793442023,-500.0,0.00029225,7]
[389684870,1759793442032,-500.0,0.00029225,7]
[389684871,1759793442041,-500.0,0.00029225,7]
[389684872,1759793442050,-2616.29,0.00029225,7]
[389684873,1759793442059,-2616.29,0.00029225,7]
[389684874,1759793442068,-4604.66,0.00029225,7]
[389684875,1759793442078,-4604.66,0.00029225,7]
[389684876,1759793442087,-1333.99,0.00029225,7]
[389684877,1759793442096,-1333.99,0.00029225,7]
[389684878,1759793442105,-598.14,0.00029225,7]
[389684879,1759793442114,-598.14,0.00029225,7]
[389684880,1759793442126,-500.0,0.00029225,7]
[389684881,1759793442135,-500.0,0.00029225,7]
[389684882,1759793442144,-3433.3,0.00029225,7]
[389684883,1759793442153,-3433.3,0.00029225,7]
[389684884,1759793442165,-1000.0,0.00029225,30]
[389684885,1759793442174,-1000.0,0.00029225,30]
[389684886,1759793442183,-1999.85,0.00029225,7]
[389684887,1759793442192,-1999.85,0.00029225,7]
[389684888,1759793442201,-19882.46,0.00029225,7]
[389684889,1759793442214,-770.62,0.00029225,7]
[389684890,1759793442223,-770.62,0.00029225,7]
[389684891,1759793442233,-635.42499999,0.00029225,7]
[389684892,1759793442243,-500.0,0.00029225,7]
[389684893,1759793442252,-500.0,0.00029225,7]
[389684894,1759793442262,-500.0,0.00029225,7]
[389684895,1759793442271,-561.30564899,0.00029225,7]
[389684896,1759793442280,-283.06371623,0.00029225,7]
[389684897,1759793442289,-500.0,0.00029225,7]
[389684898,1759793442299,-500.0,0.00029225,7]
[389684899,1759793442308,-500.0,0.00029225,7]
[389684900,1759793442317,-500.0,0.00029225,7]
[389684901,1759793442327,-500.0,0.00029225,7]
[389684902,1759793442336,-500.0,0.00029225,7]
[389684903,1759793442347,-151.0,0.00029225,30]
[389684904,1759793442356,-151.0,0.00029225,30]
[389684905,1759793442365,-500.0,0.00029225,7]
[389684906,1759793442374,-151.0,0.00029225,30]
[389684907,1759793442383,-271.8132242,0.00029225,7]
[389684908,1759793442392,-151.0,0.00029225,30]
[389684909,1759793442401,-151.0,0.00029225,30]
[389684910,1759793442410,-151.0,0.00029225,30]
[389684911,1759793442419,-151.0,0.00029225,30]
[389684912,1759793442428,-151.0,0.00029225,30]
[389684913,1759793442437,-151.0,0.00029225,30]
[389684914,1759793442450,-151.0,0.00029225,30]
[389684915,1759793442459,-151.0,0.00029225,30]
[389684916,1759793442469,-151.0,0.00029225,30]
[389684917,1759793442479,-151.0,0.00029225,2]
[389684918,1759793442489,-151.0,0.00029225,2]
[389684919,1759793442498,-165.41,0.00029225,7]
[389684920,1759793442508,-500.0,0.00029225,7]
[389684921,1759793442518,-500.0,0.00029225,7]
[389684922,1759793442529,-231.16675743,0.00029225,7]
[389684923,1759793442540,-151.0,0.00029225,30]
[389684924,1759793442549,-500.0,0.00029225,7]
[389684925,1759793442559,-3222.46,0.00029225,7]
[389684926,1759793442568,-500.0,0.00029225,7]
[389684927,1759793442577,-3222.46,0.00029225,7]
[389684928,1759793442587,-151.0,0.00029225,30]
[389684929,1759793442596,-151.0,0.00029225,30]
[389684930,1759793442605,-420.0170331,0.00029225,7]
[389684931,1759793442614,-151.0,0.00029225,30]
[389684932,1759793442624,-500.0,0.00029225,7]
[389684933,1759793442633,-151.0,0.00029225,30]
[389684934,1759793442642,-500.0,0.00029225,7]
[389684935,1759793442651,-500.0,0.00029225,7]
[389684936,1759793442660,-151.0,0.00029225,30]
[389684937,1759793442671,-500.55061555,0.00029225,7]
[389684938,1759793442680,-6684.84,0.00029225,7]
[389684939,1759793442690,-340.583924,0.00029225,30]
[389684940,1759793442699,-340.583924,0.00029225,30]
[389684941,1759793442710,-151.0,0.00029225,30]
[389684942,1759793442720,-340.583924,0.00029225,30]
[389684943,1759793442730,-500.99425463,0.00029225,7]
[389684944,1759793442739,-340.583924,0.00029225,30]
[389684945,1759793442748,-151.0,0.00029225,15]
[389684946,1759793442757,-620.16164996,0.00029225,7]
[389684947,1759793442767,-500.0,0.00029225,7]
[389684948,1759793442776,-501.7857443,0.00029225,7]
[389684949,1759793442785,-157.966643,0.00029225,30]
[389684950,1759793442794,-500.0,0.00029225,7]
[389684951,1759793442804,-220.97648848,0.00029225,7]
[389684952,1759793442813,-151.0,0.00029225,30]
[389684953,1759793442822,-151.0,0.00029225,30]
[389684954,1759793442831,-151.0,0.00029225,30]
[389684955,1759793442840,-151.0,0.00029225,30]
[389684956,1759793442850,-500.0,0.00029225,7]
[389684957,1759793442859,-500.0,0.00029225,7]
[389684958,1759793442869,-500.0,0.00029225,7]
[389684959,1759793442878,-500.0,0.00029225,7]
[389684960,1759793442887,-151.0,0.00029225,30]
[389684961,1759793442896,-76566.74857793,0.00029225,3]
[389684962,1759793442920,-477.45836581,0.00029033,2]
[389684963,1759793442929,-3058.03475257,0.00029225,3]
[389684964,1759793442939,-26790.49361871,0.00029225,3]
[389684965,1759793442954,-467.49815454,0.00028999,7]
[389684966,1759793442965,-1626.01184546,0.00028999,7]
[389684967,1759793442974,-4476.36701122,0.00029225,3]
[389684974,1759793443271,-623.35,0.00029225,3]
[389684975,1759793443490,-217.21298574,0.0002,2]
[389684976,1759793443499,-418.50400626,0.00028999,7]
[389684977,1759793443511,-155.30599374,0.00028999,7]
[389684978,1759793443520,-2093.51,0.000291,7]
[389684979,1759793443529,-573.81,0.000291,7]
[389684980,1759793443539,-512.55182451,0.00029214,7]
[389684981,1759793443548,-2093.51,0.00029214,7]
[389684982,1759793443557,-302.72536103,0.00029214,7]
[389684983,1759793443567,-271.08463897,0.00029214,7]
[389684984,1759793443576,-299.78766859,0.00029217,7]
[389684985,1759793443588,-1793.72233141,0.00029217,7]
[389684986,1759793443597,-573.81,0.00029217,7]
[389684987,1759793443606,-2093.51,0.00029224,7]
[389684988,1759793443615,-573.81,0.00029224,7]
[389684989,1759793443624,-151.0,0.00029225,30]
[389684990,1759793443634,-727.54207729,0.00029225,3]
[389684991,1759793443654,-1372.49582753,0.00029225,3]
[389684992,1759793443676,-2545.42827023,0.00029225,3]
[389684993,1759793443688,-616.15,0.00029225,3]
[389684994,1759793443699,-14684.3026902,0.00029225,3]
[389685000,1759793443761,-364.00364,0.00029225,3]
[389685009,1759793446171,-217.21298574,0.000202,2]
[389685011,1759793446181,-217.21298574,0.000204,2]
[389685013,1759793446191,-217.21298574,0.000206,2]
[389685015,1759793446201,-217.21298574,0.000208,2]
[389685017,1759793446211,-500.0,0.00028999,7]
[389685019,1759793446220,-477.45836581,0.00029067,2]
[389685021,1759793446230,-507.54156777,0.000291,7]
[389685023,1759793446240,-151.0,0.00029225,30]
[389685025,1759793446250,-500.0,0.00029225,7]
[389685027,1759793446261,-283.082417,0.00029225,30]
[389685028,1759793446271,-500.0,0.00029225,7]
[389685030,1759793446280,-18732.64452132,0.00029225,3]
[389685032,1759793446290,-2712.15369672,0.00029226,3]
[389685035,1759793446302,-266.17975015,0.00029226,3]
[389685037,1759793446313,-4723.77771105,0.00029226,3]
[389685039,1759793446325,-455.95,0.00029226,3]
[389685041,1759793446336,-2949.45184391,0.00029226,3]
[389685043,1759793446360,-1128.12700001,0.00029226,3]
[389685044,1759793446371,-438.5333316,0.00029226,3]
[389685045,1759793446383,-1175.0,0.00029226,3]
[389685046,1759793446395,-1711.08617678,0.00029226,3]
[389685047,1759793446407,-10981.33493328,0.00029226,3]
[389685048,1759793446417,-47288.5184377,0.00029226,3]
[389685049,1759793446427,-502.59233529,0.00029226,7]
[389685050,1759793446436,-500.0,0.00029226,7]
[389685051,1759793446447,-500.0,0.00029226,7]
[389685052,1759793446456,-500.0,0.00029226,7]
[389685053,1759793446466,-500.0,0.00029226,7]
[389685054,1759793446475,-500.0,0.00029226,7]
[389685055,1759793446485,-535.34058445,0.00029226,7]
[389685056,1759793446495,-505.93463682,0.00029226,7]
[389685057,1759793446504,-500.0,0.00029226,7]
[389685058,1759793446514,-500.0,0.00029226,7]
[389685059,1759793446524,-19882.46,0.00029226,7]
[389685060,1759793446534,-500.0,0.00029226,7]
[389685061,1759793446543,-500.0,0.00029226,7]
[389685062,1759793446552,-500.0,0.00029226,7]
[389685063,1759793446562,-500.0,0.00029226,7]
[389685064,1759793446571,-1693.25,0.00029226,7]
[389685065,1759793446581,-500.0,0.00029226,7]
[389685066,1759793446590,-6684.84,0.00029226,7]
[389685067,1759793446601,-26541.5944435,0.00029226,3]
[389685068,1759793446611,-23644.2592188,0.00029226,3]
[389685069,1759793446620,-26541.5944435,0.00029227,3]
[389685070,1759793446630,-23644.2592188,0.00029227,3]
[389685071,1759793446640,-722.48,0.00029234,7]
[389685072,1759793446649,-500.0,0.00029234,7]
[389685074,1759793446658,-500.0,0.00029234,7]
[389685076,1759793446668,-500.0,0.00029234,7]
[389685078,1759793446678,-500.0,0.00029234,7]
[389685080,1759793446687,-500.0,0.00029234,7]
[389685082,1759793446697,-889.19,0.00029234,7]
[389685084,1759793446707,-500.0,0.00029234,7]
[389685086,1759793446717,-795.22,0.00029234,7]
[389685088,1759793446726,-500.0,0.00029234,7]
[389685091,1759793446736,-2467.52,0.00029234,7]
[389685093,1759793446745,-2993.19,0.00029234,7]
[389685095,1759793446755,-1086.83,0.00029234,7]
[389685097,1759793446765,-2429.46,0.00029234,7]
[389685099,1759793446775,-500.0,0.00029234,7]
[389685101,1759793446785,-500.0,0.00029234,7]
[389685103,1759793446794,-2656.9,0.00029234,2]
[389685105,1759793446803,-2093.51,0.00029234,7]
[389685107,1759793446813,-573.81,0.00029234,7]
[389685109,1759793446822,-463.57945289,0.00029235,7]
[389685112,1759793446832,-500.0,0.00029235,7]
[389685114,1759793446841,-1026.97,0.00029235,7]
[389685115,1759793446850,-1026.97,0.00029235,7]
[389685116,1759793446860,-1026.97,0.00029235,7]
[389685117,1759793446871,-2941.94,0.00029235,7]
[389685118,1759793446882,-2941.94,0.00029235,7]
[389685119,1759793446891,-2941.94,0.00029235,7]
[389685120,1759793446901,-500.0,0.00029235,7]
[389685121,1759793446910,-500.0,0.00029235,7]
[389685122,1759793446919,-500.0,0.00029235,7]
[389685123,1759793446929,-500.0,0.00029235,7]
[389685124,1759793446938,-500.0,0.00029235,7]
[389685125,1759793446948,-500.0,0.00029235,7]
[389685126,1759793446957,-500.0,0.00029235,7]
[389685127,1759793446967,-374.70042464,0.00029235,7]
[389685128,1759793446977,-500.0,0.00029235,7]
[389685129,1759793446986,-500.0,0.00029235,7]
[389685130,1759793446996,-500.0,0.00029235,7]
[389685131,1759793447005,-722.48,0.00029235,7]
[389685133,1759793447014,-295.01619933,0.00029235,7]
[389685137,1759793447043,-500.0,0.00028999,7]
[389685139,1759793447053,-204.98380067,0.00029235,7]
[389685141,1759793447062,-500.0,0.00029235,7]
[389685143,1759793447074,-500.0,0.00029235,7]
[389685145,1759793447083,-500.0,0.00029235,7]
[389685147,1759793447092,-500.0,0.00029235,7]
[389685149,1759793447102,-500.0,0.00029235,7]
[389685151,1759793447111,-500.0,0.00029235,7]
[389685153,1759793447123,-500.0,0.00029235,7]
[389685155,1759793447137,-500.0,0.00029235,7]
[389685157,1759793447146,-500.0,0.00029235,7]
[389685159,1759793447155,-510.13367791,0.00029235,7]
[389685161,1759793447165,-645.73990226,0.00029235,7]
[389685163,1759793447174,-500.0,0.00029235,7]
[389685165,1759793447185,-436.76803701,0.00029235,7]
[389685167,1759793447194,-500.0,0.00029235,7]
[389685169,1759793447204,-2436.96147404,0.00029235,7]
[389685425,1759793504337,152.35,0.00014392,2]
[389685426,1759793698478,655.01,0.00013699,2]
[389685427,1759793700085,-303.2366537,0.00020187,2]
[389685428,1759793703541,-151.0,0.00020187,2]
[389685430,1759793708316,-169.52047737,0.00020187,2]
[389685431,1759793822716,-31.25286893,0.00020187,2]
[389685432,1759793822755,-165.51047726,0.00020746,2]
[389685433,1759794242383,-190.92588674,0.00020537,2]
[389685440,1759794546033,-150.0,0.00020554,2]
[389685441,1759794546057,-253.30539074,0.00020554,2]
[389685442,1759794568312,-195.0,0.00020554,2]
[389685443,1759794568342,-105.89842232,0.00020554,2]
[389685451,1759794631642,-80.84228248,0.00020554,2]
[389685452,1759794631655,-195.0,0.00020558,2]
[389685453,1759794631671,-1789.1066033,0.00020563,2]
[389685454,1759794631685,-210.8933967,0.00020563,2]
[389685455,1759794631695,-195.0,0.00020609,2]
[389685456,1759794631704,-2008.03318404,0.00020819,2]
[389685457,1759794631714,-223.13,0.00021,21]
[389685458,1759794631724,-153.97,0.00021106,4]
[389685459,1759794631734,-152.35,0.00021305,2]
[389685460,1759794631743,-150.0,0.00021918,2]
[389685461,1759794631755,-237.0,0.00022571,2]
[389685462,1759794631767,-300.0,0.00022571,2]
[389685463,1759794631776,-209.0,0.00022571,2]
[389685464,1759794631786,-1200.0,0.00022571,2]
[389685465,1759794631796,-14800.95508357,0.00022572,2]
[389685466,1759794631808,-600.0,0.00022577,2]
[389685467,1759794631817,-300.0,0.00022609,2]
[389685468,1759794631828,-250.0,0.00022609,2]
[389685469,1759794631838,-195.0,0.00022609,2]
[389685470,1759794631847,-500.0,0.00022609,2]
[389685471,1759794631857,-354.35623255,0.00022609,2]
[389685472,1759794631866,-195.0,0.00022609,2]
[389685474,1759794631875,-303.52149836,0.00022609,2]
[389685476,1759794631885,-225.24910357,0.00022609,2]
[389685477,1759794631898,-2000.0,0.0002261,2]
[389685478,1759794631908,-150.0,0.00022918,2]
[389685479,1759794631918,-600.0,0.00023125,2]
[389685480,1759794631928,-600.0,0.00023673,2]
[389685481,1759794631939,-150.0,0.00023918,2]
[389685482,1759794631948,-600.0,0.00024221,2]
[389685483,1759794631958,-1680.0,0.00024627,2]
[389685484,1759794631967,-160.83,0.00024658,2]
[389685485,1759794631976,-150.0,0.00024918,2]
[389685486,1759794631985,-2370.25422347,0.0002502,2]
[389685487,1759794631995,-1023.42768116,0.00025737,2]
[389685488,1759794632004,-150.0,0.00025737,2]
[389685489,1759794632014,-150.0,0.00025918,2]
[389685490,1759794632023,-1000.0,0.00025955,2]
[389685491,1759794632033,-150.0,0.00026088,4]
[389685492,1759794632042,-150.0,0.00026088,4]
[389685493,1759794632052,-150.0,0.00026088,4]
[389685494,1759794632061,-142.7347291,0.00026088,4]
[389685495,1759794632139,-7.2652709,0.00026088,4]
[389685496,1759794632150,-150.0,0.00026088,4]
[389685497,1759794632159,-150.0,0.00026088,4]
[389685498,1759794632169,-709.6,0.0002613,120]
[389685499,1759794632179,-3634.83508846,0.00026194,2]
[389685500,1759794632188,-165.0,0.0002625,2]
[389685501,1759794632199,-166.0,0.0002625,2]
[389685502,1759794632209,-519.38,0.00026304,2]
[389685503,1759794632218,-1302.6,0.00026314,2]
[389685504,1759794632228,-1705.93,0.00026434,2]
[389685505,1759794632238,-2989.48988104,0.00026532,2]
[389685506,1759794632247,-655.01,0.00026676,2]
[389685507,1759794632257,-150.0,0.00026918,2]
[389685508,1759794632267,-150.0,0.00027537,7]
[389685509,1759794632276,-150.0,0.00027537,7]
[389685510,1759794632286,-519.38,0.00027619,2]
[389685511,1759794632295,-2000.0,0.000277,2]
[389685512,1759794632305,-601.3376128,0.00027809,2]
[389685513,1759794632315,-151.0,0.00027809,2]
[389685514,1759794632325,-250.0,0.00027849,2]
[389685515,1759794632334,-177.50006388,0.00027918,7]
[389685516,1759794632344,-175.445,0.00027918,18]
[389685517,1759794632353,-1322.476,0.00027918,18]
[389685518,1759794632363,-677.04,0.00028164,2]
[389685519,1759794632372,-474.0,0.00028164,2]
[389685520,1759794632381,-474.0,0.00028164,2]
[389685521,1759794632391,-474.0,0.00028164,2]
[389685522,1759794632400,-945.33,0.00028164,2]
[389685523,1759794632410,-152.35,0.00028219,2]
[389685524,1759794632420,-807.65,0.00028241,2]
[389685525,1759794632430,-474.0,0.00028241,2]
[389685526,1759794632439,-474.0,0.00028241,2]
[389685527,1759794632449,-807.65,0.00028241,2]
[389685528,1759794632743,-370.68887098,0.00028283,2]
[389685529,1759794632753,-151.0,0.00028357,2]
[389685530,1759794632763,-1006.69938653,0.00028421,2]
[389685531,1759794632772,-175.59,0.00028438,2]
[389685532,1759794632781,-150.0,0.00028438,2]
[389685533,1759794632790,-167.94,0.00028438,2]
[389685534,1759794632800,-300.0,0.00028438,2]
[389685535,1759794632809,-412.48,0.00028438,2]
[389685536,1759794632819,-150.0,0.00028438,2]
[389685537,1759794632828,-150.0,0.00028438,2]
[389685538,1759794632837,-545.7,0.00028438,2]
[389685539,1759794632846,-545.7,0.00028438,2]
[389685540,1759794632856,-301.44,0.00028438,2]
[389685541,1759794632865,-167.94,0.00028438,2]
[389685542,1759794632874,-150.0,0.00028438,2]
[389685543,1759794632884,-167.49,0.00028438,2]
[389685544,1759794632893,-150.0,0.00028438,2]
[389685545,1759794632902,-544.47,0.00028438,2]
[389685546,1759794632911,-300.0,0.00028478,2]
[389685547,1759794632920,-196.0,0.000285,2]
[389685548,1759794632929,-500.0,0.00028548,2]
[389685549,1759794632939,-153.72812968,0.00028685,2]
[389685550,1759794632949,-946.20151747,0.00028886,2]
[389685551,1759794632959,-946.20151746,0.00028888,2]
[389685552,1759794632969,-946.20151746,0.00028889,2]
[389685553,1759794632978,-2500.0,0.0002889,2]
[389685554,1759794632987,-946.20151746,0.00028891,2]
[389685555,1759794632996,-946.20151746,0.00028892,2]
[389685556,1759794633006,-946.20151746,0.00028894,2]
[389685557,1759794633016,-946.20151746,0.00028895,2]
[389685558,1759794633025,-946.20151746,0.00028897,2]
[389685559,1759794633035,-1551.1461262,0.00028898,2]
[389685560,1759794633045,-946.20151746,0.00028898,2]
[389685561,1759794633056,-269.02963038,0.00028899,2]
[389685562,1759794633065,-2000.0,0.000289,30]
[389685563,1759794633075,-30000.0,0.000289,2]
[389685564,1759794633085,-160.73597816,0.000289,2]
[389685565,1759794633094,-946.20151746,0.000289,2]
[389685566,1759794633103,-151.0,0.00028905,2]
[389685567,1759794633113,-1551.14612614,0.00028922,2]
[389685568,1759794633123,-1405.0,0.00028927,2]
[389685569,1759794633133,-517.46,0.00028927,2]
[389685570,1759794633142,-519.38,0.00028935,2]
[389685571,1759794633151,-1551.14612614,0.00028946,2]
[389685572,1759794633160,-1551.14612614,0.0002897,2]
[389685573,1759794633169,-500.0,0.00028973,5]
[389685574,1759794633178,-500.0,0.00028973,5]
[389685575,1759794633187,-500.0,0.00028973,5]
[389685576,1759794633196,-500.0,0.0002898,7]
[389685577,1759794633205,-228.08,0.0002898,7]
[389685578,1759794633214,-407.55,0.0002898,7]
[389685579,1759794633223,-500.0,0.0002898,7]
[389685580,1759794633232,-500.0,0.0002898,7]
[389685581,1759794633241,-2244.89,0.0002898,7]
[389685582,1759794633250,-35379.91583825,0.0002898,3]
[389685583,1759794633261,-3906.75956983,0.0002898,3]
[389685584,1759794633343,-4530.60817959,0.0002898,3]
[389685585,1759794633354,-531.171,0.0002898,3]
[389685586,1759794637375,-500.0,0.0002898,7]
[389685587,1759794637386,-979.83092045,0.0002898,3]
[389685588,1759794637441,-3100.00000002,0.0002898,3]
[389685589,1759794637454,-4904.97837106,0.0002898,3]
[389685590,1759794637676,-4077.52766231,0.0002898,3]
[389685777,1759794639581,-500.0,0.0002898,7]
[389685779,1759794639590,-123.49738546,0.0002898,2]
[389685781,1759794639602,-1898.73261454,0.0002898,2]
[389685783,1759794639612,-23396.57768219,0.0002898,3]
[389685785,1759794639623,-332.15572721,0.0002898,3]
[389685787,1759794639634,-452.20582707,0.0002898,3]
[389685789,1759794639646,-1391.62996747,0.0002898,3]
[389685791,1759794639657,-3779.62863851,0.0002898,3]
[389685794,1759794639667,-690.94567573,0.0002898,3]
[389685796,1759794639678,-4129.71441029,0.0002898,3]
[389685798,1759794639689,-9521.35639934,0.0002898,3]
[389685800,1759794639700,-100369.82467868,0.0002898,3]
[389685802,1759794639709,-67905.159098,0.0002898,3]
[389685804,1759794639719,-150.0,0.00028986,7]
[389685806,1759794639729,-150.0,0.00028986,7]
[389685808,1759794639738,-150.0,0.00028986,7]
[389685810,1759794639747,-150.0,0.00028986,7]
[389685812,1759794639760,-500.0,0.00028988,7]
[389685814,1759794639769,-500.0,0.00028988,7]
[389685815,1759794639779,-503.16905881,0.00028988,7]
[389685818,1759794639790,-2244.89,0.00028988,7]
[389685820,1759794639800,-2244.89,0.00028988,7]
[389685821,1759794639809,-500.0,0.00028988,7]
[389685823,1759794639819,-500.0,0.00028988,7]
[389685825,1759794639828,-2022.23,0.00028988,2]
[389685827,1759794639837,-2022.23,0.00028988,2]
[389685829,1759794639846,-25184.3538185,0.00028988,3]
[389685831,1759794639856,-22635.0530327,0.00028988,3]
[389685833,1759794639865,-226659.184367,0.00028989,3]
[389685835,1759794639874,-161677.71510602,0.00028989,3]
[389685839,1759794639900,-3259.20000091,0.00028989,3]
[389685841,1759794639911,-2982.61922181,0.00028989,3]
[389685843,1759794639922,-4042.17016174,0.00028989,3]
[389685845,1759794639933,-2265.79635968,0.00028989,3]
[389686070,1759794642738,-275.99312935,0.0002898,7]
[389686081,1759794642837,-224.00687065,0.0002898,7]
[389686083,1759794642846,-500.0,0.00028988,7]
[389686085,1759794642855,-500.0,0.00028988,2]
[389686087,1759794642865,-500.0,0.00028988,2]
[389686089,1759794642875,-537.85950232,0.00028988,2]
[389686091,1759794642884,-500.0,0.00028988,2]
[389686092,1759794642900,-500.0,0.00028988,2]
[389686094,1759794642910,-500.0,0.00028988,2]
[389686096,1759794642919,-500.0,0.00028988,2]
[389686099,1759794642928,-500.0,0.00028988,2]
[389686100,1759794642938,-500.0,0.00028988,2]
[389686102,1759794642947,-29487.97644384,0.00028989,3]
[389686104,1759794642957,-596.41,0.00028989,7]
[389686106,1759794642966,-596.41,0.00028989,7]
[389686108,1759794642975,-500.0,0.00028989,7]
[389686110,1759794642985,-500.0,0.00028989,7]
[389686112,1759794642995,-815.12,0.00028989,7]
[389686115,1759794643005,-815.12,0.00028989,7]
[389686116,1759794643015,-1850.64,0.00028989,7]
[389686119,1759794643028,-1850.64,0.00028989,7]
[389686121,1759794643038,-1822.09,0.00028989,7]
[389686123,1759794643048,-1822.09,0.00028989,7]
[389686125,1759794643057,-500.0,0.00028989,7]
[389686127,1759794643066,-500.0,0.00028989,7]
[389686129,1759794643075,-500.0,0.00028989,7]
[389686131,1759794643084,-500.0,0.00028989,7]
[389686133,1759794643093,-500.0,0.00028989,7]
[389686135,1759794643103,-500.0,0.00028989,7]
[389686137,1759794643112,-500.0,0.00028989,7]
[389686139,1759794643121,-500.0,0.00028989,7]
[389686141,1759794643132,-2024.79,0.00028989,7]
[389686143,1759794643141,-2024.79,0.00028989,7]
[389686145,1759794643151,-500.0,0.00028989,7]
[389686147,1759794643160,-500.0,0.00028989,7]
[389686149,1759794643169,-1468.63,0.00028989,7]
[389686151,1759794643178,-1468.63,0.00028989,7]
[389686153,1759794643187,-500.0,0.00028989,7]
[389686155,1759794643196,-500.0,0.00028989,7]
[389686156,1759794643205,-602.07,0.00028989,7]
[389686158,1759794643214,-602.07,0.00028989,7]
[389686160,1759794643223,-367.06394998,0.00028989,7]
[389686162,1759794643233,-397.9007077,0.00028989,7]
[389686164,1759794643243,-345.09102119,0.00028989,7]
[389686167,1759794643255,-500.0,0.00028989,7]
[389686169,1759794643264,-502.56761081,0.00028989,7]
[389686171,1759794643273,-10392.62,0.00028989,7]
[389686173,1759794643283,-10392.62,0.00028989,7]
[389686175,1759794643291,-500.0,0.00028989,7]
[389686176,1759794643300,-500.0,0.00028989,7]
[389686178,1759794643310,-500.0,0.00028989,7]
[389686181,1759794643320,-500.0,0.00028989,7]
[389686183,1759794643329,-540.72023113,0.00028989,7]
[389686185,1759794643338,-1481.6,0.00028989,7]
[389686187,1759794643347,-1481.6,0.00028989,7]
[389686189,1759794643357,-500.0,0.00028989,7]
[389686191,1759794643366,-2244.89,0.00028989,7]
[389686193,1759794643375,-2244.89,0.00028989,7]
[389686195,1759794643384,-2022.23,0.00028989,2]
[389686197,1759794643393,-2022.23,0.00028989,2]
[389686199,1759794643403,-38831.26312302,0.0002899,3]
[389689184,1759794814664,-271.348054,0.00027913,120]
[389689185,1759794829436,-196.76334619,0.00027913,120]